[Event "MČR juniorů a juniorek v rapid šachu 2023"]
[Site "Czech Republic"]
[Date "2023.09.24"]
[Round "8.24"]
[White "Nagyova, Daniela"]
[Black "Dudkova, Josefina"]
[Result "1-0"]
[TimeControl "20 min + 5 sec per move"]
[WhiteFideId "390070"]
[BlackFideId "23712350"]
[WhiteElo "1762"]
[BlackElo "1437"]

1. e4 {[%clk 00:20:07]} {[%emt 00:00:03]} d5 {[%clk 00:20:09]} {[%emt
00:00:02]} 2. exd5 {[%clk 00:20:10]} {[%emt 00:00:03]} Qxd5 {[%clk 00:20:12]}
{[%emt 00:00:01]} 3. Nc3 {[%clk 00:20:12]} {[%emt 00:00:02]} Qd6 {[%clk
00:20:15]} {[%emt 00:00:02]} 4. d4 {[%clk 00:20:00]} {[%emt 00:00:17]} Nf6
{[%clk 00:20:17]} {[%emt 00:00:03]} 5. Nf3 {[%clk 00:19:33]} {[%emt 00:00:32]}
Bg4 {[%clk 00:20:19]} {[%emt 00:00:03]} 6. Be3 {[%clk 00:18:43]} {[%emt
00:00:55]} e6 {[%clk 00:20:22]} {[%emt 00:00:03]} 7. h3 {[%clk 00:18:42]}
{[%emt 00:00:05]} Bh5 {[%clk 00:20:12]} {[%emt 00:00:15]} 8. g4 {[%clk
00:17:45]} {[%emt 00:01:02]} Bg6 {[%clk 00:20:13]} {[%emt 00:00:05]} 9. Ne5
{[%clk 00:16:50]} {[%emt 00:00:59]} c6 {[%clk 00:19:43]} {[%emt 00:00:35]} 10.
h4 {[%clk 00:15:37]} {[%emt 00:01:17]} h5 {[%clk 00:17:52]} {[%emt 00:01:57]}
11. Nxg6 {[%clk 00:14:39]} {[%emt 00:01:04]} fxg6 {[%clk 00:17:55]} {[%emt
00:00:01]} 12. g5 {[%clk 00:13:16]} {[%emt 00:01:28]} Ng4 {[%clk 00:17:11]}
{[%emt 00:00:49]} 13. Bd3 {[%clk 00:12:57]} {[%emt 00:00:24]} e5 {[%clk
00:14:30]} {[%emt 00:02:46]} 14. Qe2 {[%clk 00:11:09]} {[%emt 00:01:54]} Nd7
{[%clk 00:13:10]} {[%emt 00:01:25]} 15. dxe5 {[%clk 00:10:27]} {[%emt
00:00:47]} Ndxe5 {[%clk 00:12:23]} {[%emt 00:00:53]} 16. O-O-O {[%clk
00:10:01]} {[%emt 00:00:30]} Qc7 {[%clk 00:11:32]} {[%emt 00:00:56]} 17. Bd4
{[%clk 00:06:05]} {[%emt 00:04:00]} O-O-O {[%clk 00:10:30]} {[%emt 00:01:08]}
18. Be4 {[%clk 00:04:16]} {[%emt 00:01:53]} Nd7 {[%clk 00:06:34]} {[%emt
00:04:01]} 19. Bxg6 {[%clk 00:03:27]} {[%emt 00:00:54]} Qf4+ {[%clk 00:04:56]}
{[%emt 00:01:43]} 20. Kb1 {[%clk 00:03:31]} {[%emt 00:00:02]} Bd6 {[%clk
00:04:06]} {[%emt 00:00:54]} 21. f3 {[%clk 00:02:32]} {[%emt 00:01:03]} Nge5
{[%clk 00:03:57]} {[%emt 00:00:15]} 22. Be4 {[%clk 00:02:28]} {[%emt 00:00:09]}
Nc5 {[%clk 00:03:12]} {[%emt 00:00:50]} 23. Be3 {[%clk 00:01:55]} {[%emt
00:00:38]} Qf7 {[%clk 00:03:02]} {[%emt 00:00:15]} 24. Rxd6 {[%clk 00:01:50]}
{[%emt 00:00:10]} Rxd6 {[%clk 00:03:02]} {[%emt 00:00:06]} 25. Bxc5 {[%clk
00:01:54]} {[%emt 00:00:02]} Re6 {[%clk 00:02:40]} {[%emt 00:00:26]} 26. Bxa7
{[%clk 00:01:47]} {[%emt 00:00:12]} Rhe8 {[%clk 00:02:23]} {[%emt 00:00:21]} 27.
Bd4 {[%clk 00:01:17]} {[%emt 00:00:35]} Nd7 {[%clk 00:01:22]} {[%emt 00:01:06]}
28. a3 {[%clk 00:01:14]} {[%emt 00:00:09]} c5 {[%clk 00:01:15]} {[%emt
00:00:13]} 29. Bf2 {[%clk 00:01:10]} {[%emt 00:00:08]} Rd6 {[%clk 00:00:40]}
{[%emt 00:00:40]} 30. Nb5 {[%clk 00:01:07]} {[%emt 00:00:08]} Rb6 {[%clk
00:00:27]} {[%emt 00:00:18]} 31. Rd1 {[%clk 00:01:10]} {[%emt 00:00:01]} Ne5
{[%clk 00:00:14]} {[%emt 00:00:18]} 32. Bxc5 {[%clk 00:01:06]} {[%emt
00:00:09]} Ra6 {[%clk 00:00:08]} {[%emt 00:00:11]} 33. Nd6+ {[%clk 00:01:00]}
{[%emt 00:00:11]} Rxd6 {[%clk 00:00:10]} {[%emt 00:00:04]} 34. Bxd6 {[%clk
00:01:03]} {[%emt 00:00:02]} 1-0

[Event "MČR juniorů a juniorek v rapid šachu 2023"]
[Site "Czech Republic"]
[Date "2023.09.24"]
[Round "8.25"]
[White "Pistej, Tomas"]
[Black "Jun, Rostislav"]
[Result "1/2-1/2"]
[TimeControl "20 min + 5 sec per move"]
[WhiteFideId "23750740"]
[BlackFideId "23719524"]
[WhiteElo "1640"]
[BlackElo "1317"]

1. e4 {[%clk 00:20:08]} {[%emt 00:00:01]} c5 {[%clk 00:20:06]} {[%emt
00:00:05]} 2. Nc3 {[%clk 00:20:10]} Nc6 {[%clk 00:20:08]} {[%emt 00:00:05]} 3.
Bb5 {[%clk 00:20:12]} e6 {[%clk 00:20:12]} {[%emt 00:00:05]} 4. Bxc6 {[%clk
00:20:11]} bxc6 {[%clk 00:20:15]} {[%emt 00:00:07]} 5. f4 {[%clk 00:20:10]} d6
{[%clk 00:20:17]} {[%emt 00:00:09]} 6. Nf3 {[%clk 00:20:05]} Be7 {[%clk
00:20:17]} {[%emt 00:00:15]} 7. d3 {[%clk 00:19:50]} Nf6 {[%clk 00:20:12]}
{[%emt 00:00:30]} 8. O-O {[%clk 00:19:20]} O-O {[%clk 00:20:12]} 9. e5 {[%clk
00:19:20]} Nd5 {[%clk 00:20:12]} {[%emt 00:01:41]} 10. Ne4 {[%clk 00:17:37]}
Qc7 {[%clk 00:19:48]} {[%emt 00:01:26]} 11. exd6 {[%clk 00:15:56]} Bxd6 {[%clk
00:19:48]} 12. Nxd6 {[%clk 00:15:56]} Qxd6 {[%clk 00:19:54]} {[%emt 00:01:58]}
13. Ne5 {[%clk 00:15:13]} Bb7 {[%emt 00:02:49]} 14. Nc4 {[%emt 00:00:02]} Qd8
{[%clk 00:19:26]} {[%emt 00:00:10]} 15. Qe1 {[%clk 00:12:18]} {[%emt 00:01:27]}
Re8 {[%clk 00:19:05]} {[%emt 00:00:26]} 16. Qf2 {[%clk 00:11:29]} {[%emt
00:00:53]} Qe7 {[%clk 00:18:46]} {[%emt 00:00:25]} 17. b3 {[%clk 00:11:04]}
{[%emt 00:00:30]} Rad8 {[%clk 00:18:35]} {[%emt 00:00:16]} 18. Ba3 {[%clk
00:10:26]} {[%emt 00:00:43]} Nb4 {[%clk 00:18:29]} {[%emt 00:00:11]} 19. Bxb4
{[%clk 00:09:50]} {[%emt 00:00:41]} cxb4 {[%clk 00:18:29]} {[%emt 00:00:05]} 20.
Qxa7 {[%clk 00:09:27]} {[%emt 00:00:28]} c5 {[%clk 00:18:18]} {[%emt 00:00:15]}
21. Na5 {[%clk 00:07:44]} {[%emt 00:01:49]} Rd7 {[%clk 00:17:58]} {[%emt
00:00:25]} 22. Nxb7 {[%clk 00:07:38]} {[%emt 00:00:11]} Rxb7 {[%clk 00:18:02]}
23. Qa6 {[%clk 00:07:31]} {[%emt 00:00:11]} Ra7 {[%clk 00:18:05]} {[%emt
00:00:03]} 24. Qc4 {[%clk 00:07:25]} {[%emt 00:00:11]} Rea8 {[%clk 00:18:08]}
{[%emt 00:00:03]} 25. Rfe1 {[%clk 00:06:20]} {[%emt 00:01:09]} Rxa2 {[%clk
00:17:58]} {[%emt 00:00:16]} 26. Rxa2 {[%clk 00:06:13]} {[%emt 00:00:12]} Rxa2
{[%clk 00:18:01]} {[%emt 00:00:02]} 27. f5 {[%clk 00:06:05]} {[%emt 00:00:13]}
e5 {[%clk 00:17:36]} {[%emt 00:00:30]} 28. Qd5 {[%clk 00:05:03]} {[%emt
00:01:07]} g6 {[%clk 00:15:30]} {[%emt 00:02:12]} 29. Rxe5 {[%clk 00:03:39]}
{[%emt 00:01:29]} Ra1+ {[%clk 00:14:53]} {[%emt 00:00:42]} 30. Kf2 {[%clk
00:03:40]} {[%emt 00:00:03]} Qh4+ {[%clk 00:14:56]} {[%emt 00:00:03]} 31. g3
{[%clk 00:01:53]} {[%emt 00:01:51]} Qxh2+ {[%clk 00:14:51]} {[%emt 00:00:10]}
32. Qg2 {[%clk 00:01:36]} {[%emt 00:00:22]} Qh5 {[%clk 00:13:25]} {[%emt
00:01:25]} 33. g4 {[%clk 00:00:55]} {[%emt 00:00:53]} Qh4+ {[%clk 00:13:11]}
{[%emt 00:00:18]} 34. Kf3 {[%clk 00:00:53]} {[%emt 00:00:07]} Qd8 {[%clk
00:11:43]} {[%emt 00:00:16]} 35. Qe2 {[%clk 00:00:43]} {[%emt 00:01:34]} Kg7
{[%clk 00:10:42]} {[%emt 00:01:05]} 36. Re8 {[%clk 00:00:18]} {[%emt 00:00:30]}
Qd5+ {[%clk 00:10:29]} {[%emt 00:00:18]} 37. Kf2 {[%clk 00:00:14]} {[%emt
00:00:08]} Qd4+ {[%clk 00:10:24]} {[%emt 00:00:10]} 38. Kf3 {[%clk 00:00:11]}
{[%emt 00:00:09]} Qd5+ {[%clk 00:10:23]} {[%emt 00:00:07]} 39. Kf2 {[%clk
00:00:11]} {[%emt 00:00:04]} Qd4+ {[%clk 00:10:27]} {[%emt 00:00:01]} 40. Kf3
{[%clk 00:00:08]} {[%emt 00:00:08]} Qd5+ {[%emt 00:00:17]} 41. Kf2 Qd4+ {[%emt
00:00:19]} 42. Kf3 1/2-1/2

[Event "MČR juniorů a juniorek v rapid šachu 2023"]
[Site "Czech Republic"]
[Date "2023.09.24"]
[Round "8.26"]
[White "Stara, Zuzana"]
[Black "Housa, Jan"]
[Result "0-1"]
[TimeControl "20 min + 5 sec per move"]
[WhiteFideId "23733543"]
[BlackFideId "23736356"]
[WhiteElo "1377"]
[BlackElo "1439"]

1. e4 {[%clk 00:20:09]} c6 {[%clk 00:20:09]} {[%emt 00:00:01]} 2. d4 {[%clk
00:20:09]} {[%emt 00:00:05]} d5 {[%clk 00:20:13]} 3. exd5 {[%clk 00:20:13]}
{[%emt 00:00:02]} cxd5 {[%clk 00:20:17]} {[%emt 00:00:01]} 4. c4 {[%clk
00:20:17]} Nf6 {[%clk 00:20:21]} 5. Nc3 {[%clk 00:20:16]} {[%emt 00:00:05]} Nc6
{[%clk 00:20:25]} {[%emt 00:00:02]} 6. c5 {[%clk 00:20:13]} {[%emt 00:00:08]}
Bg4 {[%clk 00:20:15]} {[%emt 00:00:15]} 7. Be2 {[%clk 00:19:19]} {[%emt
00:00:58]} Bxe2 {[%clk 00:20:04]} {[%emt 00:00:17]} 8. Ngxe2 {[%clk 00:19:21]}
{[%emt 00:00:03]} e5 {[%clk 00:19:54]} {[%emt 00:00:15]} 9. Be3 {[%clk
00:17:41]} {[%emt 00:01:45]} Be7 {[%clk 00:19:11]} {[%emt 00:00:49]} 10. O-O
{[%clk 00:17:19]} {[%emt 00:00:27]} O-O {[%clk 00:18:55]} {[%emt 00:00:21]} 11.
dxe5 {[%clk 00:17:00]} {[%emt 00:00:24]} Nxe5 {[%clk 00:18:49]} {[%emt
00:00:10]} 12. Nf4 {[%clk 00:15:33]} {[%emt 00:01:32]} Nc4 {[%clk 00:15:33]}
{[%emt 00:03:21]} 13. Nfxd5 {[%clk 00:13:52]} {[%emt 00:01:46]} Nxe3 {[%clk
00:14:57]} {[%emt 00:00:41]} 14. Nxe3 {[%clk 00:07:52]} {[%emt 00:06:05]} Bxc5
{[%clk 00:14:54]} {[%emt 00:00:08]} 15. Ned5 {[%clk 00:05:41]} {[%emt
00:02:16]} Re8 {[%clk 00:13:58]} {[%emt 00:01:02]} 16. Nxf6+ {[%clk 00:03:27]}
{[%emt 00:02:19]} Qxf6 {[%clk 00:13:46]} {[%emt 00:00:17]} 17. Nd5 {[%clk
00:02:33]} {[%emt 00:00:58]} Qe5 {[%clk 00:12:17]} {[%emt 00:01:35]} 18. Rc1
{[%clk 00:01:18]} {[%emt 00:01:19]} Bd6 {[%clk 00:12:21]} {[%emt 00:00:02]} 19.
g3 {[%clk 00:00:52]} {[%emt 00:00:30]} Re6 {[%clk 00:11:11]} {[%emt 00:01:15]}
20. Re1 {[%clk 00:00:25]} {[%emt 00:00:32]} Qxb2 {[%clk 00:11:10]} {[%emt
00:00:05]} 21. Rxe6 {[%clk 00:00:20]} {[%emt 00:00:10]} fxe6 {[%clk 00:11:13]}
{[%emt 00:00:03]} 22. Nc7 {[%clk 00:00:16]} {[%emt 00:00:08]} Bxc7 {[%clk
00:10:14]} {[%emt 00:01:05]} 23. Rxc7 {[%clk 00:00:20]} Rf8 {[%clk 00:10:16]}
{[%emt 00:00:02]} 24. Qe1 {[%clk 00:00:14]} {[%emt 00:00:11]} Qxa2 {[%clk
00:09:57]} {[%emt 00:00:25]} 25. Rxb7 {[%clk 00:00:17]} {[%emt 00:00:03]} a5
{[%clk 00:09:41]} {[%emt 00:00:20]} 26. Re7 {[%clk 00:00:09]} {[%emt 00:00:13]}
Rf6 {[%clk 00:07:19]} {[%emt 00:02:27]} 27. Ra7 {[%clk 00:00:09]} {[%emt
00:00:06]} a4 {[%clk 00:07:06]} {[%emt 00:00:17]} 28. Ra8+ {[%clk 00:00:13]}
{[%emt 00:00:01]} Rf8 {[%clk 00:06:24]} {[%emt 00:00:47]} 29. Rxf8+ {[%clk
00:00:16]} {[%emt 00:00:01]} Kxf8 {[%clk 00:06:27]} {[%emt 00:00:02]} 30. Qb4+
{[%clk 00:00:20]} {[%emt 00:00:02]} Kf7 {[%clk 00:05:46]} {[%emt 00:00:46]} 31.
Qf4+ {[%clk 00:00:18]} {[%emt 00:00:06]} Ke7 {[%clk 00:05:45]} {[%emt
00:00:06]} 32. Qc7+ {[%clk 00:00:17]} {[%emt 00:00:07]} Ke8 {[%clk 00:04:58]}
{[%emt 00:00:52]} 33. Qc8+ {[%clk 00:00:19]} {[%emt 00:00:03]} Kf7 {[%clk
00:04:53]} {[%emt 00:00:10]} 34. Qb7+ {[%clk 00:00:14]} {[%emt 00:00:11]} Kf6
{[%clk 00:04:31]} {[%emt 00:00:27]} 35. Qf3+ {[%clk 00:00:16]} {[%emt
00:00:02]} Ke5 {[%clk 00:04:32]} {[%emt 00:00:04]} 36. Qc3+ {[%clk 00:00:11]}
{[%emt 00:00:10]} Kd6 {[%clk 00:04:24]} {[%emt 00:00:13]} 37. Qb4+ {[%clk
00:00:11]} {[%emt 00:00:06]} Kd5 {[%clk 00:04:14]} {[%emt 00:00:14]} 38. Qb5+
{[%clk 00:00:13]} {[%emt 00:00:04]} Kd4 {[%clk 00:04:13]} {[%emt 00:00:05]} 39.
Qb6+ {[%clk 00:00:15]} {[%emt 00:00:03]} Kc3 {[%clk 00:04:13]} {[%emt
00:00:04]} 40. Qa5+ {[%clk 00:00:16]} {[%emt 00:00:04]} Kb2 {[%clk 00:03:45]}
{[%emt 00:00:33]} 41. Qe5+ {[%clk 00:00:10]} {[%emt 00:00:12]} Kb1 {[%clk
00:03:38]} {[%emt 00:00:12]} 42. Qe1+ {[%clk 00:00:07]} {[%emt 00:00:08]} Kb2
{[%clk 00:03:31]} {[%emt 00:00:13]} 43. Qd2+ {[%clk 00:00:10]} {[%emt
00:00:02]} Kb3 {[%clk 00:03:21]} {[%emt 00:00:16]} 44. Qd3+ {[%clk 00:00:13]}
{[%emt 00:00:02]} Kb4 {[%clk 00:03:24]} {[%emt 00:00:02]} 45. Qd6+ {[%clk
00:00:17]} {[%emt 00:00:02]} Kc3 {[%clk 00:03:23]} {[%emt 00:00:01]} 46. Qe5+
{[%clk 00:00:20]} {[%emt 00:00:06]} Kd2 {[%clk 00:03:12]} {[%emt 00:00:14]} 47.
Qd4+ {[%clk 00:00:13]} {[%emt 00:00:13]} Kc1 {[%clk 00:02:48]} {[%emt
00:00:29]} 48. Qf4+ {[%clk 00:00:08]} {[%emt 00:00:11]} Qd2 {[%clk 00:02:08]}
{[%emt 00:00:45]} 49. Qxa4 {[%clk 00:00:11]} {[%emt 00:00:02]} Qd1 {[%clk
00:01:39]} {[%emt 00:00:34]} 50. Kg2 {[%clk 00:00:15]} Qxa4 {[%clk 00:01:41]}
{[%emt 00:00:02]} 0-1

[Event "MČR juniorů a juniorek v rapid šachu 2023"]
[Site "Czech Republic"]
[Date "2023.09.24"]
[Round "8.28"]
[White "Stary, Simon"]
[Black "Glasbergerova, Lucie"]
[Result "1-0"]
[TimeControl "20 min + 5 sec per move"]
[WhiteFideId "23734353"]
[BlackFideId "23725184"]
[WhiteElo "1518"]
[BlackElo "1314"]

1. e4 {[%clk 00:20:09]} e5 {[%clk 00:20:08]} {[%emt 00:00:02]} 2. Nf3 {[%clk
00:20:18]} {[%emt 00:00:02]} Nc6 {[%clk 00:20:17]} {[%emt 00:00:01]} 3. Bb5
{[%clk 00:20:22]} {[%emt 00:00:01]} d6 {[%clk 00:20:20]} {[%emt 00:00:01]} 4.
c3 {[%clk 00:20:26]} {[%emt 00:00:02]} Bd7 {[%clk 00:20:23]} {[%emt 00:00:02]}
5. O-O {[%clk 00:20:28]} {[%emt 00:00:03]} Nf6 {[%clk 00:20:26]} {[%emt
00:00:02]} 6. Re1 {[%clk 00:20:31]} {[%emt 00:00:02]} Be7 {[%clk 00:20:26]}
{[%emt 00:00:04]} 7. h3 {[%clk 00:20:35]} {[%emt 00:00:02]} O-O {[%clk
00:20:28]} {[%emt 00:00:02]} 8. d3 {[%clk 00:20:36]} {[%emt 00:00:04]} h6
{[%clk 00:20:32]} {[%emt 00:00:02]} 9. Nbd2 {[%clk 00:20:39]} {[%emt 00:00:01]}
Re8 {[%clk 00:20:22]} {[%emt 00:00:15]} 10. Nf1 {[%clk 00:20:43]} {[%emt
00:00:02]} a6 {[%clk 00:20:02]} {[%emt 00:00:25]} 11. Ba4 {[%clk 00:20:47]} b5
{[%clk 00:19:35]} {[%emt 00:00:31]} 12. Bb3 {[%clk 00:20:51]} Be6 {[%clk
00:19:33]} {[%emt 00:00:08]} 13. Ng3 {[%clk 00:20:54]} {[%emt 00:00:01]} Qd7
{[%clk 00:19:24]} {[%emt 00:00:14]} 14. Be3 {[%clk 00:20:56]} {[%emt 00:00:04]}
d5 {[%clk 00:18:51]} {[%emt 00:00:38]} 15. Bc2 {[%clk 00:19:39]} {[%emt
00:01:21]} d4 {[%clk 00:17:09]} {[%emt 00:01:47]} 16. cxd4 {[%clk 00:19:40]}
{[%emt 00:00:04]} exd4 {[%clk 00:17:12]} {[%emt 00:00:03]} 17. Bf4 {[%clk
00:19:24]} {[%emt 00:00:20]} Nb4 {[%clk 00:13:48]} {[%emt 00:03:29]} 18. Bb3
{[%clk 00:18:38]} {[%emt 00:00:52]} c5 {[%clk 00:13:28]} {[%emt 00:00:24]} 19.
Ne5 {[%clk 00:18:30]} {[%emt 00:00:13]} Qc8 {[%clk 00:13:19]} {[%emt 00:00:14]}
20. Bxe6 {[%clk 00:17:29]} {[%emt 00:01:06]} Qxe6 {[%clk 00:12:40]} {[%emt
00:00:44]} 21. a3 {[%clk 00:17:29]} {[%emt 00:00:05]} Nc6 {[%clk 00:12:33]}
{[%emt 00:00:12]} 22. Nxc6 {[%clk 00:17:22]} {[%emt 00:00:13]} Qxc6 {[%clk
00:12:36]} {[%emt 00:00:02]} 23. Nf5 {[%clk 00:17:26]} {[%emt 00:00:02]} Rad8
{[%clk 00:11:53]} {[%emt 00:00:47]} 24. Qf3 {[%clk 00:16:14]} {[%emt 00:01:17]}
Kh7 {[%clk 00:09:40]} {[%emt 00:02:18]} 25. Rac1 {[%clk 00:15:03]} {[%emt
00:01:15]} Qe6 {[%clk 00:07:54]} {[%emt 00:01:51]} 26. Qg3 {[%clk 00:13:58]}
{[%emt 00:01:11]} Nh5 {[%clk 00:07:30]} {[%emt 00:00:28]} 27. Qg4 {[%clk
00:13:59]} {[%emt 00:00:03]} Qg6 {[%clk 00:07:21]} {[%emt 00:00:14]} 28. Qxg6+
{[%clk 00:13:41]} {[%emt 00:00:23]} fxg6 {[%clk 00:07:18]} {[%emt 00:00:09]} 29.
Nxe7 {[%clk 00:13:40]} {[%emt 00:00:06]} Rxe7 {[%clk 00:07:20]} {[%emt
00:00:02]} 30. Bd2 {[%clk 00:13:24]} {[%emt 00:00:21]} Rc8 {[%clk 00:07:16]}
{[%emt 00:00:10]} 31. e5 {[%clk 00:12:49]} {[%emt 00:00:41]} g5 {[%clk
00:06:13]} {[%emt 00:01:07]} 32. g3 {[%clk 00:12:13]} {[%emt 00:00:42]} g6
{[%clk 00:05:59]} {[%emt 00:00:18]} 33. Re4 {[%clk 00:11:38]} {[%emt 00:00:41]}
Ng7 {[%clk 00:05:53]} {[%emt 00:00:10]} 34. b4 {[%clk 00:10:43]} {[%emt
00:01:00]} c4 {[%clk 00:04:36]} {[%emt 00:01:22]} 35. dxc4 {[%clk 00:10:26]}
{[%emt 00:00:23]} Rxc4 {[%clk 00:04:29]} {[%emt 00:00:11]} 36. Rxc4 {[%clk
00:10:27]} {[%emt 00:00:04]} bxc4 {[%clk 00:04:33]} {[%emt 00:00:02]} 37. Rxd4
{[%clk 00:10:31]} Rxe5 {[%clk 00:04:35]} {[%emt 00:00:03]} 38. Rxc4 {[%clk
00:10:31]} {[%emt 00:00:05]} Re6 {[%clk 00:03:32]} {[%emt 00:01:08]} 39. Rc7
{[%clk 00:10:27]} {[%emt 00:00:09]} Kg8 {[%clk 00:03:31]} {[%emt 00:00:06]} 40.
g4 {[%clk 00:09:46]} {[%emt 00:00:47]} Ne8 {[%clk 00:03:18]} {[%emt 00:00:17]}
41. Ra7 {[%clk 00:09:42]} {[%emt 00:00:09]} Nf6 {[%clk 00:03:11]} {[%emt
00:00:13]} 42. Be3 {[%clk 00:08:33]} {[%emt 00:01:14]} Nd5 {[%clk 00:02:55]}
{[%emt 00:00:21]} 43. Bd4 {[%clk 00:08:13]} {[%emt 00:00:24]} Ne7 {[%clk
00:02:19]} {[%emt 00:00:41]} 44. Bc5 {[%clk 00:07:14]} {[%emt 00:01:05]} Nc8
{[%clk 00:01:56]} {[%emt 00:00:28]} 45. Rc7 {[%clk 00:06:46]} {[%emt 00:00:33]}
Re8 {[%clk 00:01:38]} {[%emt 00:00:24]} 46. a4 {[%clk 00:06:41]} {[%emt
00:00:10]} h5 {[%clk 00:01:30]} {[%emt 00:00:13]} 47. b5 {[%clk 00:06:33]}
{[%emt 00:00:13]} axb5 {[%clk 00:01:30]} {[%emt 00:00:04]} 48. axb5 {[%clk
00:06:37]} {[%emt 00:00:02]} Rd8 {[%clk 00:01:19]} {[%emt 00:00:16]} 49. b6
{[%clk 00:06:39]} {[%emt 00:00:03]} Nd6 {[%clk 00:00:57]} {[%emt 00:00:27]} 50.
Bxd6 {[%clk 00:06:32]} {[%emt 00:00:12]} Rxd6 {[%clk 00:01:00]} {[%emt
00:00:02]} 51. b7 {[%clk 00:06:36]} Rb6 {[%clk 00:00:58]} {[%emt 00:00:06]} 52.
Rc8+ {[%clk 00:06:40]} {[%emt 00:00:01]} Kf7 {[%clk 00:01:01]} {[%emt
00:00:02]} 53. b8=Q {[%clk 00:06:42]} {[%emt 00:00:03]} Rxb8 {[%clk 00:01:05]}
{[%emt 00:00:01]} 54. Rxb8 {[%clk 00:06:45]} {[%emt 00:00:02]} 1-0